[Event "DVM U14 2021"]
[Site "Willingen"]
[Date "2022.08.16"]
[Round "7"]
[White "Vesszö, Aaron"]
[Black "Yue, Qihang"]
[Result "1-0"]
[ECO "D00"]
[WhiteElo "1306"]
[BlackElo "1401"]
[Annotator "NA RC"]
[PlyCount "79"]
[EventDate "2022.08.12"]
[EventType "team-tourn"]
[EventRounds "7"]
[EventCountry "GER"]
[SourceTitle "playchess.com"]
[Source "ChessBase"]
[SourceQuality "1"]
[TimeControl "40/5400+30:1800+30"]

1. d4 {[%emt 0:00:13]} Nf6 {[%emt 0:00:19]} 2. Bf4 {[%emt 0:00:17]} e6 {[%emt 0:00:22]} 3. e3 {[%emt 0:00:28]} d5 {[%emt 0:00:10]} 4. Nd2 {[%emt 0:00:29]} c5 {[%emt 0:00:08]} 5. c3 {[%emt 0:00:47]} Bd6 {[%emt 0:00:24]} 6. Bxd6 {[%emt 0:00:07]} Qxd6 {[%emt 0:00:21]} 7. f4 {[%emt 0:00:26]} cxd4 {[%emt 0:00:10]} 8. cxd4 {[%emt 0:00:41]} Nc6 {[%emt 0:00:38]} 9. Bd3 {[%emt 0:01:26]} Bd7 {[%emt 0:04:41]} 10. Ngf3 {[%emt 0:01:33]} O-O {[%emt 0:01:28]} 11. Ne5 {[%emt 0:00:48]} Rac8 {[%emt 0:00:07]} 12. O-O {[%emt 0:07:37]} Qe7 {[%emt 0:01:41]} 13. g4 {[%emt 0:01:07]} Nxe5 {[%emt 0:01:45]} 14. fxe5 {[%emt 0:00:59]} Ne8 {[%emt 0:02:18]} 15. Rf3 {[%emt 0:01:54]} f6 {[%emt 0:00:29]} 16. Qf1 {[%emt 0:01:54]} g6 {[%emt 0:01:10]} 17. h4 {[%emt 0:00:17]} fxe5 {[%emt 0:00:12]} 18. Rxf8+ {[%emt 0:00:09]} Qxf8 {[%emt 0:00:09]} 19. Qxf8+ {[%emt 0:00:06]} Kxf8 {[%emt 0:00:15]} 20. Rf1+ {[%emt 0:01:02]} Kg7 {[%emt 0:00:22]} 21. dxe5 {[%emt 0:02:40]} Nc7 {[%emt 0:01:15]} 22. e4 {[%emt 0:02:24]} Bb5 {[%emt 0:01:32]} 23. Rf3 {[%emt 0:01:23]} Bxd3 {[%emt 0:00:10]} 24. Rxd3 {[%emt 0:07:03]} Rf8 {[%emt 0:00:55]} 25. Kg2 {[%emt 0:00:46]} dxe4 {[%emt 0:00:21]} 26. Nxe4 {[%emt 0:00:44]} Nd5 {[%emt 0:00:23]} 27. Rf3 {[%emt 0:04:11]} Rxf3 {[%emt 0:00:21]} 28. Kxf3 {[%emt 0:02:43]} b6 {[%emt 0:00:58]} 29. b3 {[%emt 0:02:30]} h6 {[%emt 0:00:21]} 30. Nd6 {[%emt 0:02:50]} Kf8 {[%emt 0:00:41]} 31. a4 {[%emt 0:01:37]} Ke7 {[%emt 0:00:23]} 32. Nc8+ {[%emt 0:00:27]} Kd7 {[%emt 0:00:06]} 33. Nxa7 {[%emt 0:00:36]} Kc7 {[%emt 0:00:06]} 34. Nb5+ {[%emt 0:02:21]} Kc6 {[%emt 0:00:28]} 35. Nd4+ {[%emt 0:01:22]} Kd7 {[%emt 0:00:42]} 36. Ke4 {[%emt 0:01:23]} g5 {[%emt 0:01:04]} 37. hxg5 {[%emt 0:00:09]} hxg5 {[%emt 0:00:11]} 38. Nf3 {[%emt 0:02:29]} Kc6 {[%emt 0:00:18]} 39. Nxg5 {[%emt 0:00:12]} Nc7 {[%emt 0:00:14]} 40. Nf3 1-0

[Event "DVM U14 2021"]
[Site "Willingen"]
[Date "2022.08.16"]
[Round "7"]
[White "Huber, Laura"]
[Black "Leonard, Etienne Peter"]
[Result "0-1"]
[ECO "D00"]
[WhiteElo "1302"]
[BlackElo "1373"]
[Annotator "NA RC"]
[PlyCount "66"]
[EventDate "2022.08.12"]
[EventType "team-tourn"]
[EventRounds "7"]
[EventCountry "GER"]
[SourceTitle "playchess.com"]
[Source "ChessBase"]
[SourceQuality "1"]
[TimeControl "40/5400+30:1800+30"]

1. d4 {[%emt 0:00:01]} d5 {[%emt 0:00:14]} 2. Nc3 {[%emt 0:00:05]} c6 {[%emt 0:00:17]} 3. Bf4 {[%emt 0:02:07]} Bf5 {[%emt 0:02:39]} 4. Qd2 {[%emt 0:10:33]} e6 {[%emt 0:02:57]} 5. f3 {[%emt 0:01:02]} h6 {[%emt 0:02:28]} 6. g4 {[%emt 0:01:04]} Bh7 {[%emt 0:00:10]} 7. h4 {[%emt 0:03:00]} Bd6 {[%emt 0:00:49]} 8. O-O-O {[%emt 0:02:00]} Qc7 {[%emt 0:00:53]} 9. Nh3 {[%emt 0:08:42]} Nd7 {[%emt 0:01:42]} 10. Bxd6 {[%emt 0:13:55]} Qxd6 {[%emt 0:00:22]} 11. Nf4 {[%emt 0:02:52]} O-O-O {[%emt 0:03:32]} 12. e4 {[%emt 0:07:09]} f6 {[%emt 0:02:18]} 13. exd5 {[%emt 0:01:46]} exd5 {[%emt 0:00:17]} 14. Re1 {[%emt 0:00:38]} Nb6 {[%emt 0:02:42]} 15. Ne6 {[%emt 0:04:30]} Re8 {[%emt 0:01:22]} 16. Nxg7 {[%emt 0:01:21]} Rxe1+ {[%emt 0:00:34]} 17. Qxe1 {[%emt 0:00:02]} Ne7 {[%emt 0:01:09]} 18. Nh5 {[%emt 0:04:28]} Kd8 {[%emt 0:08:23]} 19. Qg3 {[%emt 0:04:52]} Qxg3 {[%emt 0:00:45]} 20. Nxg3 {[%emt 0:00:17]} Rg8 {[%emt 0:00:38]} 21. Nh5 {[%emt 0:01:31]} Rf8 {[%emt 0:01:58]} 22. Nf4 {[%emt 0:01:43]} Kd7 {[%emt 0:00:54]} 23. Nd3 {[%emt 0:00:37]} Kd6 {[%emt 0:00:57]} 24. Nc5 {[%emt 0:01:12]} Rb8 {[%emt 0:01:27]} 25. g5 {[%emt 0:05:32]} Ng8 {[%emt 0:00:52]} 26. gxf6 {[%emt 0:01:10]} Nxf6 {[%emt 0:00:22]} 27. Rg1 {[%emt 0:00:33]} Nh5 {[%emt 0:00:21]} 28. Ne2 {[%emt 0:02:57]} Kc7 {[%emt 0:01:00]} 29. Bh3 {[%emt 0:00:50]} Re8 {[%emt 0:01:37]} 30. Ne6+ {[%emt 0:01:53]} Kd6 {[%emt 0:00:23]} 31. N2f4 {[%emt 0:02:02]} Nxf4 {[%emt 0:00:14]} 32. Nxf4 {[%emt 0:00:01]} Nc4 {[%emt 0:00:15]} 33. Rg7 {[%emt 0:01:00]} Re1# {[%emt 0:00:53]} 0-1

[Event "DVM U14 2021"]
[Site "Willingen"]
[Date "2022.08.16"]
[Round "7"]
[White "Walter, Romeo"]
[Black "Klein, Maxim"]
[Result "1-0"]
[ECO "A25"]
[WhiteElo "1197"]
[BlackElo "1323"]
[Annotator "NA RC"]
[PlyCount "95"]
[EventDate "2022.08.12"]
[EventType "team-tourn"]
[EventRounds "7"]
[EventCountry "GER"]
[SourceTitle "playchess.com"]
[Source "ChessBase"]
[SourceQuality "1"]
[TimeControl "40/5400+30:1800+30"]

1. c4 {[%emt 0:00:30]} e5 {[%emt 0:00:00]} 2. Nc3 {[%emt 0:00:05]} Nc6 {[%emt 0:00:02]} 3. g3 {[%emt 0:00:38]} Bc5 {[%emt 0:00:22]} 4. e3 {[%emt 0:01:09]} Nf6 {[%emt 0:00:20]} 5. Bg2 {[%emt 0:00:43]} d6 {[%emt 0:00:36]} 6. Nge2 {[%emt 0:00:53]} Be6 {[%emt 0:01:44]} 7. d4 {[%emt 0:13:45]} exd4 {[%emt 0:00:42]} 8. exd4 {[%emt 0:09:10]} Bb6 {[%emt 0:03:16]} 9. d5 {[%emt 0:02:49]} Ng4 {[%emt 0:06:56]} 10. O-O {[%emt 0:08:00]} Qf6 {[%emt 0:07:32]} 11. Ne4 {[%emt 0:04:55]} Qf5 {[%emt 0:00:59]} 12. dxe6 {[%emt 0:00:19]} fxe6 {[%emt 0:04:16]} 13. h3 {[%emt 0:01:15]} Nge5 {[%emt 0:09:14]} 14. Nf4 {[%emt 0:08:33]} Nxc4 {[%emt 0:08:59]} 15. Qh5+ {[%emt 0:01:52]} g6 {[%emt 0:00:18]} 16. Qxf5 {[%emt 0:00:17]} exf5 {[%emt 0:02:30]} 17. b3 {[%emt 0:02:32]} N4e5 {[%emt 0:01:28]} 18. Nf6+ {[%emt 0:00:14]} Kf7 {[%emt 0:00:18]} 19. N6d5 {[%emt 0:01:11]} Bd4 {[%emt 0:01:49]} 20. Rb1 {[%emt 0:02:07]} Rac8 {[%emt 0:02:36]} 21. Bb2 {[%emt 0:01:25]} g5 {[%emt 0:07:07]} 22. Bxd4 {[%emt 0:00:24]} Nxd4 {[%emt 0:01:43]} 23. Rbd1 {[%emt 0:02:14]} Ndf3+ {[%emt 0:01:43]} 24. Bxf3 {[%emt 0:00:07]} Nxf3+ {[%emt 0:00:16]} 25. Kg2 {[%emt 0:01:07]} Ne5 {[%emt 0:01:41]} 26. Nd3 {[%emt 0:02:59]} Ng6 {[%emt 0:02:12]} 27. f4 {[%emt 0:04:16]} gxf4 {[%emt 0:00:25]} 28. N5xf4 {[%emt 0:01:34]} Rhg8 {[%emt 0:00:12]} 29. Nxg6 {[%emt 0:00:07]} hxg6 {[%emt 0:01:17]} 30. Rde1 {[%emt 0:01:57]} c5 {[%emt 0:09:08]} 31. Nf4 {[%emt 0:01:47]} c4 {[%emt 0:00:17]} 32. bxc4 {[%emt 0:00:12]} Rxc4 {[%emt 0:01:07]} 33. Re2 {[%emt 0:02:46]} Rgc8 {[%emt 0:00:34]} 34. Rfe1 {[%emt 0:03:10]} Rc2 {[%emt 0:02:26]} 35. Kf3 {[%emt 0:01:14]} R8c3+ {[%emt 0:01:23]} 36. Kf2 {[%emt 0:03:42]} Rxe2+ {[%emt 0:00:17]} 37. Rxe2 {[%emt 0:00:09]} Ra3 {[%emt 0:04:30]} 38. Nd5 {[%emt 0:01:04]} Ra5 {[%emt 0:00:54]} 39. Ne3 {[%emt 0:01:00]} Kf6 {[%emt 0:00:16]} 40. Nc4 {[%emt 0:00:47]} Rd5 {[%emt 0:01:25]} 41. Rd2 {[%emt 0:31:15]} Rxd2+ {[%emt 0:30:11]} 42. Nxd2 {[%emt 0:00:18]} Ke5 {[%emt 0:03:59]} 43. Ke3 {[%emt 0:02:40]} g5 {[%emt 0:10:13]} 44. g4 {[%emt 0:01:34]} f4+ {[%emt 0:00:19]} 45. Kd3 {[%emt 0:02:59]} f3 {[%emt 0:02:14]} 46. Nxf3+ {[%emt 0:00:08]} Kf4 {[%emt 0:00:00]} 47. Nxg5 {[%emt 0:00:00]} Kxg5 {[%emt 0:00:00]} 48. Ke4 {[%emt 0:00:00]} 1-0

[Event "DVM U14 2021"]
[Site "Willingen"]
[Date "2022.08.16"]
[Round "7"]
[White "Sun, Christopher"]
[Black "Lippmann, Niklas A."]
[Result "0-1"]
[ECO "C47"]
[WhiteElo "1091"]
[BlackElo "1263"]
[Annotator "NA RC"]
[PlyCount "58"]
[EventDate "2022.08.12"]
[EventType "team-tourn"]
[EventRounds "7"]
[EventCountry "GER"]
[SourceTitle "playchess.com"]
[Source "ChessBase"]
[SourceQuality "1"]
[TimeControl "40/5400+30:1800+30"]

1. e4 {[%emt 0:00:02]} e5 {[%emt 0:00:06]} 2. Nf3 {[%emt 0:00:06]} Nc6 {[%emt 0:00:09]} 3. Nc3 {[%emt 0:00:11]} Nf6 {[%emt 0:00:17]} 4. a3 {[%emt 0:00:10]} a6 {[%emt 0:03:59]} 5. d4 {[%emt 0:00:14]} exd4 {[%emt 0:00:55]} 6. Nxd4 {[%emt 0:00:11]} d5 {[%emt 0:04:10]} 7. Nxc6 {[%emt 0:05:32]} bxc6 {[%emt 0:00:07]} 8. exd5 {[%emt 0:00:36]} cxd5 {[%emt 0:00:11]} 9. Be3 {[%emt 0:00:44]} c5 {[%emt 0:01:35]} 10. Qe2 {[%emt 0:04:00]} Be6 {[%emt 0:00:57]} 11. Bg5 {[%emt 0:01:13]} Be7 {[%emt 0:00:38]} 12. g3 {[%emt 0:01:29]} O-O {[%emt 0:01:46]} 13. Bg2 {[%emt 0:00:32]} Ra7 {[%emt 0:02:03]} 14. O-O {[%emt 0:00:18]} d4 {[%emt 0:02:29]} 15. Ne4 {[%emt 0:01:33]} Nxe4 {[%emt 0:01:03]} 16. Bxe7 {[%emt 0:00:35]} Rxe7 {[%emt 0:00:18]} 17. Qxe4 {[%emt 0:00:55]} Bc4 {[%emt 0:01:45]} 18. Qf5 {[%emt 0:03:09]} Bxf1 {[%emt 0:02:20]} 19. Bxf1 {[%emt 0:00:17]} Qb6 {[%emt 0:00:40]} 20. Bd3 {[%emt 0:01:57]} g6 {[%emt 0:00:37]} 21. Qg5 {[%emt 0:01:34]} Rfe8 {[%emt 0:02:31]} 22. Qd2 {[%emt 0:03:08]} Qxb2 {[%emt 0:01:11]} 23. Rc1 {[%emt 0:01:23]} Qxc1+ {[%emt 0:01:35]} 24. Qxc1 {[%emt 0:00:11]} Re1+ {[%emt 0:00:05]} 25. Qxe1 {[%emt 0:00:11]} Rxe1+ {[%emt 0:00:08]} 26. Kg2 {[%emt 0:00:37]} Ra1 {[%emt 0:00:14]} 27. Bxa6 {[%emt 0:00:23]} Rxa3 {[%emt 0:00:08]} 28. Bc4 {[%emt 0:00:36]} Rc3 {[%emt 0:00:22]} 29. Bd3 {[%emt 0:00:25]} c4 {[%emt 0:00:10]} 0-1